[Event "Live Chess"]
[Site "Chess.com"]
[Date "2023.05.21"]
[Round "-"]
[White "alanmike75"]
[Black "NAZRIZ1977"]
[Result "0-1"]
[WhiteElo "1534"]
[BlackElo "2063"]
[TimeControl "300"]
[EndTime "16:29:44 PDT"]
[Termination "NAZRIZ1977 won by resignation"]

1. e4 {[%clk 0:04:55.5]} 1... c5 {[%clk 0:04:58.5]} 2. Nf3 {[%clk 0:04:54.1]}
2... d6 {[%clk 0:04:57.4]} 3. d4 {[%clk 0:04:52.9]} 3... cxd4 {[%clk 0:04:56.7]}
4. Nxd4 {[%clk 0:04:51.8]} 4... Nf6 {[%clk 0:04:56.2]} 5. Bd3 {[%clk 0:04:50.4]}
5... g6 {[%clk 0:04:55.8]} 6. O-O {[%clk 0:04:48.7]} 6... Bg7 {[%clk 0:04:55.3]}
7. c3 {[%clk 0:04:47.7]} 7... O-O {[%clk 0:04:54.5]} 8. Be3 {[%clk 0:04:46.5]}
8... Ng4 {[%clk 0:04:51.2]} 9. Bd2 {[%clk 0:04:42.1]} 9... Nc6 {[%clk
0:04:48.1]} 10. Nxc6 {[%clk 0:04:40.6]} 10... bxc6 {[%clk 0:04:45.4]} 11. Be2
{[%clk 0:04:39.4]} 11... Nf6 {[%clk 0:04:43.1]} 12. Be3 {[%clk 0:04:37.6]} 12...
c5 {[%clk 0:04:34]} 13. Nd2 {[%clk 0:04:36]} 13... Rb8 {[%clk 0:04:32.4]} 14. b3
{[%clk 0:04:32.9]} 14... Nd7 {[%clk 0:04:29.8]} 15. Rc1 {[%clk 0:04:30.8]} 15...
Qa5 {[%clk 0:04:25.4]} 16. Nc4 {[%clk 0:04:05.4]} 16... Qxa2 {[%clk 0:04:17.6]}
17. Ra1 {[%clk 0:04:01.9]} 17... Qxb3 {[%clk 0:04:15.9]} 18. Qxb3 {[%clk
0:04:00.7]} 18... Rxb3 {[%clk 0:04:14.4]} 19. Rxa7 {[%clk 0:03:59.4]} 19... Rxc3
{[%clk 0:04:07.9]} 20. f3 {[%clk 0:03:39.7]} 20... Ne5 {[%clk 0:03:50.4]} 21.
Nxe5 {[%clk 0:03:38]} 21... Rxe3 {[%clk 0:03:45.2]} 0-1

[Event "Live Chess"]
[Site "Chess.com"]
[Date "2023.05.21"]
[Round "-"]
[White "ExIsambard"]
[Black "Jo1ts"]
[Result "1-0"]
[WhiteElo "1933"]
[BlackElo "791"]
[TimeControl "300"]
[EndTime "16:29:55 PDT"]
[Termination "ExIsambard won by resignation"]

1. d4 {[%clk 0:04:58.6]} 1... d5 {[%clk 0:04:58.4]} 2. Nf3 {[%clk 0:04:58]} 2...
Nf6 {[%clk 0:04:56]} 3. Bg5 {[%clk 0:04:57.9]} 3... e6 {[%clk 0:04:43.9]} 4. e3
{[%clk 0:04:57]} 4... h6 {[%clk 0:04:42.2]} 5. Bf4 {[%clk 0:04:56]} 5... g5
{[%clk 0:04:38.7]} 6. Be5 {[%clk 0:04:54.8]} 6... Bd6 {[%clk 0:04:34]} 7. Bd3
{[%clk 0:04:52.4]} 7... Nc6 {[%clk 0:04:24.2]} 8. c3 {[%clk 0:04:50.6]} 8... Nd7
{[%clk 0:04:13.5]} 9. Bxh8 {[%clk 0:04:48.8]} 9... Nf8 {[%clk 0:04:01.5]} 10.
Bg7 {[%clk 0:04:44.9]} 10... Nd7 {[%clk 0:04:01.4]} 11. Bxh6 {[%clk 0:04:43.4]}
1-0

[Event "Live Chess"]
[Site "Chess.com"]
[Date "2023.05.21"]
[Round "-"]
[White "ClassyChameleon"]
[Black "toog"]
[Result "0-1"]
[WhiteElo "1057"]
[BlackElo "2582"]
[TimeControl "300"]
[EndTime "16:30:00 PDT"]
[Termination "toog won by resignation"]

1. e4 {[%clk 0:04:55.3]} 1... c5 {[%clk 0:04:58]} 2. Nc3 {[%clk 0:04:52.9]} 2...
d6 {[%clk 0:04:57.2]} 3. Bc4 {[%clk 0:04:52]} 3... Nc6 {[%clk 0:04:52.8]} 4. d3
{[%clk 0:04:51.1]} 4... g6 {[%clk 0:04:51.1]} 5. Bf4 {[%clk 0:04:49.8]} 5... Bg7
{[%clk 0:04:50.2]} 6. Nge2 {[%clk 0:04:47]} 6... Nf6 {[%clk 0:04:49]} 7. O-O
{[%clk 0:04:45.7]} 7... O-O {[%clk 0:04:30.6]} 8. d4 {[%clk 0:04:38.1]} 8...
cxd4 {[%clk 0:04:26.4]} 9. Nxd4 {[%clk 0:04:37.3]} 9... Bd7 {[%clk 0:04:25.6]}
10. e5 {[%clk 0:04:20.4]} 10... dxe5 {[%clk 0:04:23.2]} 11. Bxe5 {[%clk
0:04:19.6]} 11... Nxe5 {[%clk 0:04:21.9]} 12. Bb3 {[%clk 0:04:13.6]} 12... Rc8
{[%clk 0:04:13.4]} 13. a4 {[%clk 0:04:05.4]} 13... Nc4 {[%clk 0:04:07.7]} 14.
Bxc4 {[%clk 0:04:03.3]} 14... Rxc4 {[%clk 0:04:07.6]} 15. Ndb5 {[%clk 0:04:02]}
15... a6 {[%clk 0:04:06]} 16. Na3 {[%clk 0:03:55]} 16... Rc8 {[%clk 0:04:05]}
17. Nd5 {[%clk 0:03:50.3]} 17... Nxd5 {[%clk 0:04:03.3]} 18. Qxd5 {[%clk
0:03:49.3]} 18... Bc6 {[%clk 0:04:03.2]} 19. Qxd8 {[%clk 0:03:46.4]} 19... Rfxd8
{[%clk 0:04:03.1]} 20. Nc4 {[%clk 0:03:43.5]} 20... Bd5 {[%clk 0:03:58.7]} 21.
Nb6 {[%clk 0:03:41.8]} 21... Rc6 {[%clk 0:03:57.3]} 22. Nxd5 {[%clk 0:03:40.9]}
22... Rxd5 {[%clk 0:03:57.2]} 23. h3 {[%clk 0:03:38.6]} 23... Rxc2 {[%clk
0:03:55.1]} 24. b4 {[%clk 0:03:36.8]} 24... Bxa1 {[%clk 0:03:53.1]} 25. Rxa1
{[%clk 0:03:34.5]} 25... Rdd2 {[%clk 0:03:53]} 26. Rf1 {[%clk 0:03:30.8]} 26...
e5 {[%clk 0:03:52.5]} 27. Kh2 {[%clk 0:03:27.2]} 27... e4 {[%clk 0:03:52.4]} 28.
Kg3 {[%clk 0:03:25.5]} 28... e3 {[%clk 0:03:49.8]} 29. fxe3 {[%clk 0:03:22.7]}
29... Rxg2+ {[%clk 0:03:49.7]} 30. Kf3 {[%clk 0:03:21.4]} 30... Kg7 {[%clk
0:03:48.6]} 31. e4 {[%clk 0:03:18.9]} 31... Rh2 {[%clk 0:03:46.9]} 32. Kg3
{[%clk 0:03:11]} 32... Ra2 {[%clk 0:03:46]} 33. a5 {[%clk 0:03:09.4]} 33... Rhb2
{[%clk 0:03:44.8]} 34. e5 {[%clk 0:03:05.7]} 34... Ra3+ {[%clk 0:03:44.1]} 35.
Kg4 {[%clk 0:03:02.4]} 35... Rxb4+ {[%clk 0:03:39.1]} 36. Rf4 {[%clk 0:03:01.3]}
36... h5+ {[%clk 0:03:38]} 37. Kg5 {[%clk 0:02:58.9]} 37... Rg3+ {[%clk
0:03:32.8]} 38. Kh4 {[%clk 0:02:52.8]} 38... Ra4 {[%clk 0:03:32.6]} 39. Rxa4
{[%clk 0:02:46.5]} 39... Re3 {[%clk 0:03:30.5]} 40. Rb4 {[%clk 0:02:38.1]} 40...
Kh6 {[%clk 0:03:29]} 41. Rg4 {[%clk 0:02:26.7]} 41... hxg4 {[%clk 0:03:27.6]}
42. hxg4 {[%clk 0:02:26.1]} 42... Rxe5 {[%clk 0:03:27.2]} 43. g5+ {[%clk
0:02:25.1]} 43... Rxg5 {[%clk 0:03:24.7]} 0-1

[Event "Live Chess"]
[Site "Chess.com"]
[Date "2023.05.21"]
[Round "-"]
[White "GMHarry-youtube"]
[Black "ms_lilley"]
[Result "1-0"]
[WhiteElo "2012"]
[BlackElo "587"]
[TimeControl "300"]
[EndTime "16:30:03 PDT"]
[Termination "GMHarry-youtube won by checkmate"]

1. e4 {[%clk 0:04:55]} 1... e6 {[%clk 0:04:58.5]} 2. d4 {[%clk 0:04:53.5]} 2...
Nf6 {[%clk 0:04:57]} 3. e5 {[%clk 0:04:52.5]} 3... Nd5 {[%clk 0:04:53.8]} 4. c3
{[%clk 0:04:51.9]} 4... c5 {[%clk 0:04:50.7]} 5. Bd3 {[%clk 0:04:50.2]} 5... a6
{[%clk 0:04:42.9]} 6. Nf3 {[%clk 0:04:49]} 6... b5 {[%clk 0:04:40.8]} 7. Nbd2
{[%clk 0:04:45.6]} 7... h6 {[%clk 0:04:36.8]} 8. Qc2 {[%clk 0:04:43.4]} 8... b4
{[%clk 0:04:19.9]} 9. Bg6 {[%clk 0:04:38.5]} 9... bxc3 {[%clk 0:04:02]} 10. bxc3
{[%clk 0:04:34.7]} 10... Qa5 {[%clk 0:03:48.7]} 11. Be4 {[%clk 0:04:31.4]} 11...
Qb5 {[%clk 0:03:41.9]} 12. c4 {[%clk 0:04:28.4]} 12... Qb4 {[%clk 0:03:26.8]}
13. cxd5 {[%clk 0:04:27.5]} 13... cxd4 {[%clk 0:03:19.1]} 14. Qxc8+ {[%clk
0:04:25.2]} 14... Ke7 {[%clk 0:03:16.1]} 15. d6+ {[%clk 0:04:24.3]} 15... Qxd6
{[%clk 0:03:05.4]} 16. exd6+ {[%clk 0:04:24.2]} 16... Kf6 {[%clk 0:03:03.9]} 17.
Nc4 {[%clk 0:04:06.1]} 17... g5 {[%clk 0:02:51]} 18. Bb2 {[%clk 0:04:03.1]}
18... e5 {[%clk 0:02:48.3]} 19. Qd8+ {[%clk 0:04:01.1]} 19... Ke6 {[%clk
0:02:45.9]} 20. Bxd4 {[%clk 0:04:00.2]} 20... Nc6 {[%clk 0:02:39.9]} 21. Qxa8
{[%clk 0:03:54.8]} 21... Nxd4 {[%clk 0:02:36.8]} 22. Nxd4+ {[%clk 0:03:53.7]}
22... Kf6 {[%clk 0:02:30]} 23. Qd8+ {[%clk 0:03:51.3]} 23... Kg7 {[%clk
0:02:24.4]} 24. Nf5+ {[%clk 0:03:48.4]} 24... Kg6 {[%clk 0:02:19.8]} 25. Nxe5+
{[%clk 0:03:47]} 25... Kh5 {[%clk 0:02:18]} 26. g4# {[%clk 0:03:42.9]} 1-0

[Event "Live Chess"]
[Site "Chess.com"]
[Date "2023.05.21"]
[Round "-"]
[White "flyingpuffins"]
[Black "Singapourfeuj"]
[Result "1-0"]
[WhiteElo "1964"]
[BlackElo "2203"]
[TimeControl "300"]
[EndTime "16:30:04 PDT"]
[Termination "flyingpuffins won by resignation"]

1. d4 {[%clk 0:04:57.1]} 1... e6 {[%clk 0:04:59]} 2. e4 {[%clk 0:04:55.4]} 2...
d5 {[%clk 0:04:58.1]} 3. e5 {[%clk 0:04:55]} 3... c5 {[%clk 0:04:57]} 4. c3
{[%clk 0:04:54.7]} 4... Nc6 {[%clk 0:04:55.9]} 5. Nf3 {[%clk 0:04:54.3]} 5...
Qb6 {[%clk 0:04:52.8]} 6. Bd3 {[%clk 0:04:53.5]} 6... Bd7 {[%clk 0:04:52.1]} 7.
dxc5 {[%clk 0:04:51.9]} 7... Bxc5 {[%clk 0:04:51]} 8. O-O {[%clk 0:04:51.3]}
8... Nh6 {[%clk 0:04:50]} 9. Nbd2 {[%clk 0:04:42.4]} 9... O-O-O {[%clk
0:04:48.4]} 10. b4 {[%clk 0:04:37.7]} 10... Be7 {[%clk 0:04:47.3]} 11. a4 {[%clk
0:04:36.5]} 11... Ng4 {[%clk 0:04:42.6]} 12. a5 {[%clk 0:04:25.2]} 12... Qc7
{[%clk 0:04:37.3]} 13. a6 {[%clk 0:04:18]} 13... Ncxe5 {[%clk 0:04:33.9]} 14.
axb7+ {[%clk 0:04:16.4]} 14... Kb8 {[%clk 0:04:29]} 15. Nxe5 {[%clk 0:04:09.8]}
15... Nxe5 {[%clk 0:04:27.7]} 16. Nb3 {[%clk 0:04:03.2]} 16... Nxd3 {[%clk
0:04:22]} 17. Qxd3 {[%clk 0:04:03.1]} 17... Qxb7 {[%clk 0:04:21.1]} 18. Na5
{[%clk 0:03:58.9]} 18... Qb5 {[%clk 0:04:19.7]} 19. Qg3+ {[%clk 0:03:53.4]}
19... Ka8 {[%clk 0:04:17.1]} 20. Be3 {[%clk 0:03:51.3]} 20... d4 {[%clk
0:04:13.4]} 21. Bxd4 {[%clk 0:03:44.1]} 21... e5 {[%clk 0:04:12.4]} 22. Bxe5
{[%clk 0:03:29.4]} 22... Bc6 {[%clk 0:04:10.8]} 23. Nxc6 {[%clk 0:03:25.9]}
23... Qxc6 {[%clk 0:04:09.2]} 24. Bd4 {[%clk 0:03:23.5]} 24... Rd7 {[%clk
0:04:07.3]} 25. Qe3 {[%clk 0:03:08.1]} 25... a6 {[%clk 0:03:53.4]} 26. Ra5
{[%clk 0:02:58.1]} 26... Rxd4 {[%clk 0:03:52]} 27. Qxd4 {[%clk 0:02:52.4]} 27...
Bf6 {[%clk 0:03:51.1]} 28. Qd3 {[%clk 0:02:46.1]} 28... Rd8 {[%clk 0:03:49.6]}
29. Qxa6+ {[%clk 0:02:12.6]} 29... Qxa6 {[%clk 0:03:43.4]} 30. Rxa6+ {[%clk
0:02:12.5]} 30... Kb7 {[%clk 0:03:42.1]} 31. Rxf6 {[%clk 0:01:37.3]} 31... gxf6
{[%clk 0:03:40]} 32. Rc1 {[%clk 0:01:36.4]} 32... Kb6 {[%clk 0:03:38.5]} 33. g3
{[%clk 0:01:35.3]} 33... Kb5 {[%clk 0:03:37.2]} 34. Kg2 {[%clk 0:01:34.2]} 34...
Kc4 {[%clk 0:03:36.4]} 35. Kf3 {[%clk 0:01:33.5]} 35... h5 {[%clk 0:03:35.4]}
36. Kf4 {[%clk 0:01:31.6]} 36... Rd5 {[%clk 0:03:33.2]} 37. h4 {[%clk
0:01:25.6]} 37... Re5 {[%clk 0:03:30.4]} 38. g4 {[%clk 0:01:23.7]} 38... hxg4
{[%clk 0:03:28.3]} 39. Kxg4 {[%clk 0:01:23.6]} 39... Re2 {[%clk 0:03:24.4]} 40.
f4 {[%clk 0:01:19.7]} 40... Rg2+ {[%clk 0:03:22.4]} 41. Kf5 {[%clk 0:01:18.9]}
41... Rh2 {[%clk 0:03:21.7]} 42. Kxf6 {[%clk 0:01:16.3]} 42... Rxh4 {[%clk
0:03:20.8]} 43. f5 {[%clk 0:01:15.6]} 43... Rf4 {[%clk 0:03:18.8]} 44. Rb1
{[%clk 0:00:59.3]} 44... Kxc3 {[%clk 0:03:13.1]} 45. b5 {[%clk 0:00:58.7]} 45...
Rh4 {[%clk 0:03:07.7]} 46. b6 {[%clk 0:00:55.7]} 46... Rh8 {[%clk 0:03:06.6]}
47. b7 {[%clk 0:00:54.6]} 47... Rb8 {[%clk 0:03:05.6]} 48. Kxf7 {[%clk
0:00:54.2]} 48... Kd4 {[%clk 0:03:05]} 49. f6 {[%clk 0:00:53.4]} 49... Ke5
{[%clk 0:03:04.3]} 50. Ke7 {[%clk 0:00:52.7]} 50... Rxb7+ {[%clk 0:03:01.2]} 51.
Rxb7 {[%clk 0:00:50.8]} 1-0

[Event "Live Chess"]
[Site "Chess.com"]
[Date "2023.05.21"]
[Round "-"]
[White "jimwad"]
[Black "mattihelenius2"]
[Result "1-0"]
[WhiteElo "1215"]
[BlackElo "489"]
[TimeControl "300"]
[EndTime "16:30:04 PDT"]
[Termination "jimwad won by resignation"]

1. d4 {[%clk 0:04:56.9]} 1... d5 {[%clk 0:04:58.4]} 2. c4 {[%clk 0:04:55.8]}
2... dxc4 {[%clk 0:04:55.6]} 3. e3 {[%clk 0:04:54.9]} 3... Nc6 {[%clk
0:04:53.1]} 4. Bxc4 {[%clk 0:04:53.8]} 4... Be6 {[%clk 0:04:49.6]} 5. Bxe6
{[%clk 0:04:52.2]} 5... fxe6 {[%clk 0:04:44]} 6. Nc3 {[%clk 0:04:49.4]} 6... Nf6
{[%clk 0:04:43.8]} 7. Nf3 {[%clk 0:04:48]} 7... g6 {[%clk 0:04:40.2]} 8. O-O
{[%clk 0:04:46.8]} 8... Bh6 {[%clk 0:04:39.7]} 9. a3 {[%clk 0:04:38.9]} 9... O-O
{[%clk 0:04:38.1]} 10. b4 {[%clk 0:04:37.1]} 10... Qd6 {[%clk 0:04:28]} 11. Bb2
{[%clk 0:04:19.4]} 11... Ng4 {[%clk 0:04:23.9]} 12. g3 {[%clk 0:04:16]} 12...
Nce5 {[%clk 0:04:08.5]} 13. dxe5 {[%clk 0:04:13.7]} 13... Qc6 {[%clk 0:04:03]}
14. Nd4 {[%clk 0:04:06]} 14... Qc4 {[%clk 0:03:45.4]} 15. Qxg4 {[%clk
0:04:02.6]} 15... Rad8 {[%clk 0:03:33.9]} 16. Qxe6+ {[%clk 0:04:00.7]} 16... Rf7
{[%clk 0:03:29.8]} 17. Qxc4 {[%clk 0:03:59]} 1-0

[Event "Live Chess"]
[Site "Chess.com"]
[Date "2023.05.21"]
[Round "-"]
[White "EdenHazard8"]
[Black "laminaaprod"]
[Result "0-1"]
[WhiteElo "2001"]
[BlackElo "2237"]
[TimeControl "300"]
[EndTime "16:30:09 PDT"]
[Termination "laminaaprod won by resignation"]

1. e4 {[%clk 0:04:57.8]} 1... e5 {[%clk 0:04:58.1]} 2. Nf3 {[%clk 0:04:56.7]}
2... Nc6 {[%clk 0:04:57]} 3. Bc4 {[%clk 0:04:54.8]} 3... Nf6 {[%clk 0:04:54.9]}
4. Ng5 {[%clk 0:04:54.1]} 4... d5 {[%clk 0:04:51.8]} 5. exd5 {[%clk 0:04:54]}
5... Na5 {[%clk 0:04:51.1]} 6. Bb5+ {[%clk 0:04:53.9]} 6... Bd7 {[%clk
0:04:50.1]} 7. Bxd7+ {[%clk 0:04:51.2]} 7... Qxd7 {[%clk 0:04:49.7]} 8. Nc3
{[%clk 0:04:50]} 8... Nxd5 {[%clk 0:04:47.1]} 9. O-O {[%clk 0:04:48.5]} 9...
O-O-O {[%clk 0:04:46]} 10. Nxd5 {[%clk 0:04:46.9]} 10... Qxd5 {[%clk 0:04:44.7]}
11. a3 {[%clk 0:04:42.2]} 11... f6 {[%clk 0:04:22.6]} 12. Nh3 {[%clk 0:04:35]}
12... g5 {[%clk 0:04:14.8]} 13. d3 {[%clk 0:04:29.8]} 13... h5 {[%clk
0:04:10.6]} 14. b4 {[%clk 0:04:19.7]} 14... Nc6 {[%clk 0:04:02.8]} 15. f3 {[%clk
0:04:16.5]} 15... Qd4+ {[%clk 0:03:59.9]} 0-1

[Event "Live Chess"]
[Site "Chess.com"]
[Date "2023.05.21"]
[Round "-"]
[White "GEMdzq"]
[Black "elvenstar"]
[Result "1-0"]
[WhiteElo "2221"]
[BlackElo "1559"]
[TimeControl "300"]
[EndTime "16:30:17 PDT"]
[Termination "GEMdzq won by resignation"]

1. e4 {[%clk 0:04:58.2]} 1... d5 {[%clk 0:04:58.6]} 2. exd5 {[%clk 0:04:56.8]}
2... Nf6 {[%clk 0:04:57.5]} 3. Bb5+ {[%clk 0:04:54.3]} 3... Bd7 {[%clk
0:04:55.6]} 4. Be2 {[%clk 0:04:53.4]} 4... c6 {[%clk 0:04:54.2]} 5. dxc6 {[%clk
0:04:51.9]} 5... Bxc6 {[%clk 0:04:52.8]} 6. Nf3 {[%clk 0:04:51.3]} 6... Nbd7
{[%clk 0:04:51.5]} 7. O-O {[%clk 0:04:50.6]} 7... e6 {[%clk 0:04:50.1]} 8. d4
{[%clk 0:04:49.7]} 8... Bd6 {[%clk 0:04:48.5]} 9. c4 {[%clk 0:04:47.8]} 9... O-O
{[%clk 0:04:47.1]} 10. Nc3 {[%clk 0:04:47]} 10... a6 {[%clk 0:04:44.7]} 11. Re1
{[%clk 0:04:43.8]} 11... b6 {[%clk 0:04:39.4]} 12. Bg5 {[%clk 0:04:42.3]} 12...
Qc7 {[%clk 0:04:37.3]} 13. Rc1 {[%clk 0:04:40.4]} 13... Qb7 {[%clk 0:04:21.9]}
14. Qd2 {[%clk 0:04:16.1]} 14... Bb4 {[%clk 0:04:18.1]} 15. a3 {[%clk
0:04:12.2]} 15... Bxc3 {[%clk 0:04:14]} 16. Rxc3 {[%clk 0:04:12.1]} 16... Rad8
{[%clk 0:04:11.3]} 17. Rb3 {[%clk 0:03:53.5]} 17... Nc5 {[%clk 0:04:08]} 18. Re3
{[%clk 0:03:41.8]} 18... Nce4 {[%clk 0:03:58.7]} 19. Qc1 {[%clk 0:03:39.6]}
19... Nxg5 {[%clk 0:03:55.2]} 20. Nxg5 {[%clk 0:03:39.5]} 20... Rxd4 {[%clk
0:03:30.8]} 21. Rg3 {[%clk 0:03:31.3]} 21... h6 {[%clk 0:03:15.3]} 22. Nf3
{[%clk 0:03:26.6]} 22... Rg4 {[%clk 0:03:02.5]} 23. Rd1 {[%clk 0:03:14.4]} 23...
Rxg3 {[%clk 0:02:59.1]} 24. hxg3 {[%clk 0:03:14.3]} 24... Be4 {[%clk 0:02:34.5]}
25. Qe3 {[%clk 0:02:52.3]} 25... Rc8 {[%clk 0:02:01]} 26. Bf1 {[%clk 0:02:37.6]}
26... Nd7 {[%clk 0:01:27.5]} 27. Rxd7 {[%clk 0:02:29.4]} 27... Qxd7 {[%clk
0:01:23.5]} 28. Qxe4 {[%clk 0:02:28.8]} 28... Rc5 {[%clk 0:01:18.8]} 29. b4
{[%clk 0:02:22.9]} 29... Rf5 {[%clk 0:01:10.3]} 30. Nd4 {[%clk 0:02:18.3]} 30...
Rg5 {[%clk 0:01:06.1]} 31. Bd3 {[%clk 0:02:15.3]} 31... g6 {[%clk 0:00:46.2]}
32. Nf3 {[%clk 0:02:07.1]} 32... f5 {[%clk 0:00:36.4]} 33. Qe3 {[%clk
0:01:53.5]} 33... Rg4 {[%clk 0:00:32.9]} 34. Ne5 {[%clk 0:01:49.5]} 1-0

[Event "Live Chess"]
[Site "Chess.com"]
[Date "2023.05.21"]
[Round "-"]
[White "educatedlad"]
[Black "fso"]
[Result "0-1"]
[WhiteElo "1617"]
[BlackElo "2237"]
[TimeControl "300"]
[EndTime "16:30:17 PDT"]
[Termination "fso won by checkmate"]

1. e4 {[%clk 0:04:58.5]} 1... e5 {[%clk 0:04:52.3]} 2. Nf3 {[%clk 0:04:55.4]}
2... Nc6 {[%clk 0:04:46.8]} 3. c3 {[%clk 0:04:54.6]} 3... Nf6 {[%clk 0:04:45.2]}
4. d4 {[%clk 0:04:53.8]} 4... exd4 {[%clk 0:04:43.3]} 5. e5 {[%clk 0:04:52.1]}
5... Ng4 {[%clk 0:04:42.4]} 6. cxd4 {[%clk 0:04:50.5]} 6... d6 {[%clk
0:04:40.3]} 7. h3 {[%clk 0:04:47.2]} 7... Ngxe5 {[%clk 0:04:19.7]} 8. dxe5
{[%clk 0:04:45.5]} 8... Nxe5 {[%clk 0:04:18.1]} 9. Nxe5 {[%clk 0:04:45.2]} 9...
dxe5 {[%clk 0:04:17.9]} 10. Qxd8+ {[%clk 0:04:44.4]} 10... Kxd8 {[%clk
0:04:17.8]} 11. Nc3 {[%clk 0:04:42.8]} 11... c6 {[%clk 0:04:16.3]} 12. Be3
{[%clk 0:04:42.3]} 12... Kc7 {[%clk 0:04:14.7]} 13. O-O-O {[%clk 0:04:41.1]}
13... Be6 {[%clk 0:04:13.5]} 14. f3 {[%clk 0:04:37.4]} 14... f6 {[%clk
0:04:11.3]} 15. Bd3 {[%clk 0:04:32.9]} 15... b6 {[%clk 0:04:09.6]} 16. Bc2
{[%clk 0:04:32.1]} 16... Be7 {[%clk 0:04:04.2]} 17. Rd3 {[%clk 0:04:28.3]} 17...
h5 {[%clk 0:03:55.2]} 18. Rhd1 {[%clk 0:04:27.6]} 18... g5 {[%clk 0:03:52.5]}
19. Bb3 {[%clk 0:04:25.2]} 19... Bf5 {[%clk 0:03:46.8]} 20. R3d2 {[%clk
0:04:20.8]} 20... g4 {[%clk 0:03:44.5]} 21. fxg4 {[%clk 0:04:19.4]} 21... hxg4
{[%clk 0:03:44.4]} 22. hxg4 {[%clk 0:04:17.5]} 22... Bxg4 {[%clk 0:03:44.3]} 23.
Re1 {[%clk 0:04:12]} 23... a5 {[%clk 0:03:40]} 24. Bd1 {[%clk 0:04:10.5]} 24...
Be6 {[%clk 0:03:35.6]} 25. Bf3 {[%clk 0:04:05.7]} 25... a4 {[%clk 0:03:30.9]}
26. a3 {[%clk 0:04:04.2]} 26... b5 {[%clk 0:03:26.7]} 27. Nxb5+ {[%clk
0:03:52.8]} 27... cxb5 {[%clk 0:03:20.6]} 28. Bxa8 {[%clk 0:03:51.7]} 28... Rxa8
{[%clk 0:03:20.2]} 29. Rc2+ {[%clk 0:03:47.2]} 29... Kb7 {[%clk 0:03:16.9]} 30.
Rh1 {[%clk 0:03:32.4]} 30... Bf5 {[%clk 0:03:12.9]} 31. Rf2 {[%clk 0:03:17.9]}
31... Be4 {[%clk 0:03:11.1]} 32. Rd1 {[%clk 0:03:12.4]} 32... Kc6 {[%clk
0:03:03.7]} 33. g4 {[%clk 0:03:00.4]} 33... b4 {[%clk 0:03:00.4]} 34. axb4
{[%clk 0:02:58.6]} 34... a3 {[%clk 0:03:00.3]} 35. bxa3 {[%clk 0:02:57.2]} 35...
Rxa3 {[%clk 0:03:00.1]} 36. Kb2 {[%clk 0:02:55.5]} 36... Rxe3 {[%clk 0:02:58.7]}
37. Rc1+ {[%clk 0:02:52.4]} 37... Kb5 {[%clk 0:02:56.6]} 38. Rd2 {[%clk
0:02:39.5]} 38... Bxb4 {[%clk 0:02:54.2]} 39. Rd8 {[%clk 0:02:37.1]} 39... Ba3+
{[%clk 0:02:49.1]} 40. Ka2 {[%clk 0:02:35.3]} 40... Bxc1 {[%clk 0:02:46.3]} 41.
Rb8+ {[%clk 0:02:34.7]} 41... Ka6 {[%clk 0:02:41.6]} 42. Rc8 {[%clk 0:02:29.3]}
42... Ra3# {[%clk 0:02:33]} 0-1

[Event "Live Chess"]
[Site "Chess.com"]
[Date "2023.05.21"]
[Round "-"]
[White "wadsy27"]
[Black "wot-not"]
[Result "1-0"]
[WhiteElo "2571"]
[BlackElo "1544"]
[TimeControl "300"]
[EndTime "16:30:18 PDT"]
[Termination "wadsy27 won by resignation"]

1. d4 {[%clk 0:04:58.1]} 1... Nf6 {[%clk 0:04:56.3]} 2. c4 {[%clk 0:04:55.7]}
2... c5 {[%clk 0:04:53.9]} 3. d5 {[%clk 0:04:54.7]} 3... d6 {[%clk 0:04:49.8]}
4. Nc3 {[%clk 0:04:53.1]} 4... e5 {[%clk 0:04:43.2]} 5. e4 {[%clk 0:04:48.8]}
5... Be7 {[%clk 0:04:42.5]} 6. Nf3 {[%clk 0:04:46.9]} 6... Nbd7 {[%clk
0:04:41.7]} 7. h4 {[%clk 0:04:45.8]} 7... Nf8 {[%clk 0:04:24.2]} 8. h5 {[%clk
0:04:43.2]} 8... Bg4 {[%clk 0:04:19.1]} 9. h6 {[%clk 0:04:40.9]} 9... gxh6
{[%clk 0:04:11.3]} 10. Bxh6 {[%clk 0:04:37.2]} 10... Ng6 {[%clk 0:04:09.6]} 11.
Be2 {[%clk 0:04:35.2]} 11... Bxf3 {[%clk 0:04:07.4]} 12. Bxf3 {[%clk 0:04:34.1]}
12... Bf8 {[%clk 0:04:00.4]} 13. Bg5 {[%clk 0:04:30.3]} 13... Be7 {[%clk
0:03:58.1]} 14. Qd2 {[%clk 0:04:25.1]} 14... a6 {[%clk 0:03:41.8]} 15. O-O-O
{[%clk 0:04:19.5]} 15... Rb8 {[%clk 0:03:39.6]} 16. Be2 {[%clk 0:04:07.3]} 16...
Qa5 {[%clk 0:03:20.1]} 17. Kb1 {[%clk 0:03:47.9]} 17... Kd7 {[%clk 0:02:49.3]}
18. f3 {[%clk 0:03:36.1]} 18... Qd8 {[%clk 0:02:34.3]} 19. Be3 {[%clk
0:03:31.1]} 19... h5 {[%clk 0:02:12.9]} 20. g3 {[%clk 0:03:26.3]} 20... h4
{[%clk 0:02:10.5]} 21. gxh4 {[%clk 0:03:17.7]} 21... Rxh4 {[%clk 0:02:09.3]} 22.
Rxh4 {[%clk 0:03:16]} 22... Nxh4 {[%clk 0:02:08.7]} 23. Bf1 {[%clk 0:03:11]}
23... Ng6 {[%clk 0:02:05]} 24. Bh3+ {[%clk 0:03:09.8]} 24... Kc7 {[%clk
0:02:03.3]} 25. a3 {[%clk 0:02:53.8]} 25... Nh5 {[%clk 0:02:01.9]} 26. Bg4
{[%clk 0:02:51.3]} 26... Nhf4 {[%clk 0:01:58.4]} 27. b4 {[%clk 0:02:49]} 27...
cxb4 {[%clk 0:01:53.5]} 28. axb4 {[%clk 0:02:48.9]} 28... Ra8 {[%clk 0:01:34.2]}
29. Na4 {[%clk 0:02:45.1]} 29... b5 {[%clk 0:01:19.9]} 30. Bb6+ {[%clk
0:02:43.4]} 30... Kb7 {[%clk 0:01:18.5]} 31. Bxd8 {[%clk 0:02:42.4]} 31... Bxd8
{[%clk 0:01:16.4]} 32. cxb5 {[%clk 0:02:41.4]} 32... axb5 {[%clk 0:01:15]} 33.
Nc3 {[%clk 0:02:41]} 33... Bb6 {[%clk 0:01:09.8]} 34. Nxb5 {[%clk 0:02:37.5]}
34... Bd4 {[%clk 0:01:08.6]} 35. Nxd4 {[%clk 0:02:36.1]} 35... exd4 {[%clk
0:01:08.4]} 36. Qxd4 {[%clk 0:02:34.5]} 36... Ne5 {[%clk 0:01:02.1]} 37. Rc1
{[%clk 0:02:22.3]} 37... Ne2 {[%clk 0:00:52.4]} 38. Qd2 {[%clk 0:02:20.7]} 38...
Nxc1 {[%clk 0:00:51]} 39. Qxc1 {[%clk 0:02:19.4]} 39... Rc8 {[%clk 0:00:49.6]}
40. Qxc8+ {[%clk 0:02:17.9]} 1-0